Cogmind - Beta 17 @@@ ROGUE MODE // 2026.07.14 @ 17:17:40 // Winter2019/RPGLIKE Player: Gallgagger Result: Self-destructed Performance ------------- Evolutions (1) 500 Regions Visited (6) 1200 Robots Destroyed (120) 600 Value Destroyed (3884) 3884 Prototype IDs (27) 540 Alien Tech Used (0) 0 Bonus (1310) 1310 TOTAL SCORE: 8034 Bonus ------- High Alert Combat Kills 1010 Aligned with FarCom 300 Cogmind --------- Core Integrity 600/600 Matter 232/300 Energy 240/240 System Corruption 4% Temperature Cool (0) Movement Flying (28) Location -8/Mines Parts ------- > --- POWER (1) -------- Nuclear Core > --- PROPULSION (4) --- Flight Unit Flight Unit VTOL Module VTOL Module > --- UTILITY (7) ------ Experimental Heat Sink Structural Scanner Seismic Detector Targeting Computer Particle Charger Propulsion Shielding Advanced EM Shield > --- WEAPON (3) ------- EM Shotgun Guided Plasma Cannon > --- INVENTORY (3) ---- Cloak of Protection Datajack Peak State ------------ > --- POWER ------------ Nuclear Core > --- PROPULSION ------- Flight Unit Flight Unit VTOL Module VTOL Module > --- UTILITY ---------- Experimental Heat Sink Structural Scanner Seismic Detector Targeting Computer Particle Charger Propulsion Shielding Advanced EM Shield > --- WEAPON ----------- EM Shotgun Guided Plasma Cannon > --- INVENTORY -------- Cloak of Protection Datajack [Rating: 41] Favorites ----------- Power Light Ion Engine Engine Light Ion Engine Power Core Nuclear Core Propulsion Flight Unit Leg Aluminum Leg Flight Unit Flight Unit Utility Seismic Detector Device Seismic Detector Processor Targeting Computer Protection Propulsion Shielding Weapon Assault Rifle Energy Gun Medium Laser Energy Cannon Guided Plasma Cannon Ballistic Gun Assault Rifle Special Melee Weapon Datajack Build | -11 -10 -10 -9 -9 -9 -8 ------- Run | Yrd Mat Min Mat Min Exi Min Slots Evolved 11 | 4 1 2 3 . . 1 Power . | . . . . . . . Propulsion 3 | . 1 1 1 . . . Utility 6 | 2 . 1 2 . . 1 Weapon 2 | 2 . . . . . . Parts Attached 29 | 6 5 3 10 2 . 3 Power 2 | 1 . . 1 . . . Engine 1 | 1 . . . . . . Core 1 | . . . 1 . . . Reactor . | . . . . . . . Propulsion 8 | 1 2 1 4 . . . Treads . | . . . . . . . Leg 1 | 1 . . . . . . Wheel . | . . . . . . . Hover . | . . . . . . . Flight 7 | . 2 1 4 . . . Utility 8 | 1 2 1 2 . . 2 Device 6 | 1 . 1 2 . . 2 Storage . | . . . . . . . Processor 1 | . 1 . . . . . Hackware . | . . . . . . . Protection 1 | . 1 . . . . . Artifact . | . . . . . . . Weapon 11 | 3 1 1 3 2 . 1 Energy Gun 3 | 1 1 . . 1 . . Energy Cannon 1 | . . . . . . 1 Ballistic Gun 6 | 2 . . 3 1 . . Ballistic Cannon . | . . . . . . . Launcher . | . . . . . . . Special Weapon . | . . . . . . . Impact Weapon . | . . . . . . . Slashing Weapon . | . . . . . . . Piercing Weapon . | . . . . . . . Special Melee Weapon 1 | . . 1 . . . . Unidentified Prototypes 3 | . . . 1 . . 2 Corrupted Parts 1 | . . 1 . . . . System Corruption 4 | . . 4 . . . . Parts Lost . | . . . . . . . Power . | . . . . . . . Propulsion . | . . . . . . . Utility . | . . . . . . . Weapon . | . . . . . . . Highest Loss Streak . | . . . . . . . To Critical Strikes . | . . . . . . . Average Backups 1 | . . 1 1 2 2 2 Power . | . . . . 1 . . Propulsion . | . . . . . . . Utility . | . . . . . . 1 Weapon . | . . . . . . . Tool/Special . | . . . . . . . Unused Backups 1 | . . . . . . 1 Power . | . . . . . . . Propulsion . | . . . . . . . Utility 1 | . . . . . . 1 Weapon . | . . . . . . . Tool/Special . | . . . . . . . Average Slot Usage (%) 93 | . 89 100 92 100 100 88 Engine 7 | . 11 9 7 . . . Core 1 | . . . . 7 7 6 Flight 24 | . 17 28 26 28 28 26 Device 17 | . 11 11 16 28 28 26 Processor 6 | . 4 9 7 7 7 6 Protection 7 | . 8 9 7 7 7 6 Energy Gun 8 | . 11 9 7 7 7 6 Ballistic Gun 16 | . 22 19 15 14 14 1 Peak Build Rating 41 | 6 9 11 25 25 26 41 Average Rating 14 | 4 7 10 14 24 25 29 On Entrance 14 | . 6 9 11 25 25 26 Avg Prop Armor Cover (%) 9 | 10 9 . . . . . Naked Turns . | . . . . . . . Heaviest Build 29 | 8 10 11 24 25 25 29 Greatest Support 31 | 15 13 17 26 26 26 31 Greatest Overweight (x) . | . . . . . . . Average Overweight (x) . | . . . . . . . Largest Inventory Capacity 3 | . 2 2 3 3 3 3 Average Capacity 2 | . . 2 2 3 3 3 Most Carried 3 | . 2 2 3 3 3 3 Average Carried 1 | . . 1 2 2 2 2 Final Capacity 3 | . 2 2 3 3 3 3 Final Carried 3 | . 2 1 3 2 3 2 Class Distribution -------------------- 57% | Gunner 42% | Sprinter Dominant Class ---------------- Gunner | -10/Materials Gunner | -10/Mines Sprinter | -9/Materials Sprinter | -9/Mines Sprinter | -9/Exiles Sprinter | -8/Mines Resources | -11 -10 -10 -9 -9 -9 -8 ----------- Run | Yrd Mat Min Mat Min Exi Min Matter Collected 1924 | 276 313 40 1078 160 . 57 Remotely . | . . . . . . . Salvage Created 3974 | 157 1168 . 2342 256 . 51 Parts 254 | 10 68 . 141 24 . 11 Haulers Intercepted 4 | . 2 . 2 . . . Recyclers Shooed 1 | 1 . . . . . . Parts Field Recycled . | . . . . . . . Retrieved Matter . | . . . . . . . Parts Self-Destructed . | . . . . . . . Prevented . | . . . . . . . Parts Restored . | . . . . . . . Kills | -11 -10 -10 -9 -9 -9 -8 ------- Run | Yrd Mat Min Mat Min Exi Min Combat Hostiles Destroyed 111 | . 28 . 64 14 . 5 Guns 108 | . 28 . 64 12 . 4 Cannons 1 | . . . . . . 1 AOE 2 | . . . . 2 . . Classes Destroyed 9 | 2 3 . 3 1 . . Tunneler 3 | 3 . . . . . . Hauler 4 | . 2 . 2 . . . Recycler 2 | 1 . . 1 . . . Swarmer 23 | . 6 . 3 10 . 4 Grunt 70 | . 22 . 45 3 . . Brawler 4 | . . . 4 . . . Duelist 1 | . . . . 1 . . Protector 2 | . . . 2 . . . Sentry 10 | . . . 10 . . . Best Kill Streak 14 | 4 7 . 14 5 . 4 Combat Bots Only 14 | . 6 . 14 5 . 4 Max Kills in Single Turn 3 | 1 1 . 1 3 . 2 Gunslinging 1 | . . . . 1 . 1 Exploded 2 | . . . . 2 . . Melee . | . . . . . . . Uniques/NPCs Destroyed 1 | . . . . . . 1 NK-0LA (-8/Mines) Combat | -11 -10 -10 -9 -9 -9 -8 -------- Run | Yrd Mat Min Mat Min Exi Min Hostile Shots Fired 322 | . 74 . 204 20 . 24 Missed 121 | . 26 . 77 8 . 10 Hits 201 | . 48 . 127 12 . 14 Melee 2 | . . . 1 1 . . Projectile 199 | . 48 . 126 11 . 14 Critical Strikes 4 | . . . 4 . . . Part Disruptions 3 | . 1 . 2 . . . Actively Blocked 2 | . . . 2 . . . Damage Taken 2771 | 4 506 . 1789 189 . 283 Core 2176 | 3 406 . 1386 149 . 232 Absorbed by Shields . | . . . . . . . Redirected to Core 1607 | 3 275 . 1032 111 . 186 Redirected to Shielding 102 | . 12 . 83 7 . . Core Remaining (%) 97 | 99 . 95 . . . . Volleys Fired 292 | 6 67 . 150 20 2 47 Largest 3 | 3 3 . 3 3 2 3 Hottest 120 | 80 80 . 96 96 46 120 Shots Fired 784 | 18 201 . 450 60 4 51 Gun 744 | 18 201 . 450 60 4 11 Cannon 40 | . . . . . . 40 Launcher . | . . . . . . . Special . | . . . . . . . Kinetic 494 | 12 134 . 300 40 4 4 Thermal 271 | 6 67 . 150 8 . 40 Explosive . | . . . . . . . Electromagnetic 19 | . . . . 12 . 7 Robot Hit Streak 31 | 5 16 . 31 27 . 5 Robot Miss Streak 5 | 2 5 . 4 4 . 1 Penetration Max . | . . . . . . . Secondary Targets 14 | . . . 11 2 . 1 Max Gunslinging Chain 1 | . . . 1 1 . 1 Shots Hit Robots 533 | 12 132 . 339 39 . 11 Core Hits 215 | 7 51 . 127 20 . 10 Critical Kills 1 | . . . 1 . . . Critical Parts Destroyed . | . . . . . . . Critical Strikes 13 | . . . 12 1 . . Burn 12 | . . . 11 1 . . Destroy 1 | . . . 1 . . . Melee Attacks 1 | . . . 1 . . . Impact . | . . . . . . . Slashing . | . . . . . . . Piercing . | . . . . . . . Sneak Attacks . | . . . . . . . Combat Hostiles . | . . . . . . . Follow-up Attacks . | . . . . . . . Damage Inflicted 7490 | 128 1424 . 4460 673 . 805 Guns 6651 | 120 1424 . 4460 560 . 87 Cannons 718 | . . . . . . 718 Explosions 113 | . . . . 113 . . Melee . | . . . . . . . Ramming 8 | 8 . . . . . . Kinetic 4299 | 75 879 . 2939 345 . 61 Thermal 3030 | 45 545 . 1521 201 . 718 Explosive . | . . . . . . . Electromagnetic 153 | . . . . 127 . 26 Impact . | . . . . . . . Slashing . | . . . . . . . Piercing . | . . . . . . . Highest Corruption 4 | . . 4 2 2 2 4 Average Corruption 2 | . . 4 2 2 2 3 Corruption Purged . | . . . . . . . Corruption Blocked . | . . . . . . . Effects 26 | . . 4 12 3 3 4 Message Errors 6 | . . 1 3 1 1 . Matter Fused 9 | . . 2 4 1 2 . Heat Flow Errors 1 | . . . 1 . . . Energy Discharges 2 | . . . . . . 2 Data Loss (minor) 3 | . . . . 1 . 2 Data Loss (major) 1 | . . 1 . . . . Misfires 2 | . . . 2 . . . Weapon Failures 2 | . . . 2 . . . Overload Shots . | . . . . . . . Overflow Damage . | . . . . . . . Projectiles . | . . . . . . . Explosions . | . . . . . . . Melee . | . . . . . . . Knockbacks . | . . . . . . . Impact . | . . . . . . . Kinetic . | . . . . . . . Secondary . | . . . . . . . Self-Inflicted Damage 50 | 4 . . . 46 . . Shots 1 | . . . . 1 . . Rammed 1 | 1 . . . . . . Targets Rammed 1 | 1 . . . . . . Kicked . | . . . . . . . Crushed . | . . . . . . . Highest Temperature 215 | . . . 215 1 . 80 Average Temperature 33 | . . . 105 1 . 27 Received Heat Transfer 1041 | . 210 . 816 15 . . Siege Activations . | . . . . . . . Martial Activations . | . . . . . . . Shielding Activations . | . . . . . . . Robots Disrupted . | . . . . . . . Combat Hostiles . | . . . . . . . Robots Corrupted . | . . . . . . . Combat Hostiles . | . . . . . . . Parts Fried 1 | . . . . 1 . . Impact Corruptions . | . . . . . . . Robots Melted . | . . . . . . . Combat Hostiles . | . . . . . . . Parts Melted 8 | . 2 . 5 1 . . Heat Transferred 7820 | 100 1225 . 5302 433 . 760 Parts Sabotaged . | . . . . . . . Parts Stolen . | . . . . . . . Parts Stripped . | . . . . . . . Power Chain Reactions 1 | . . . . 1 . . Alert | -11 -10 -10 -9 -9 -9 -8 ------- Run | Yrd Mat Min Mat Min Exi Min Maximum Alert Level 4 | . 3 1 4 3 . . Low Security (%) 27 | 100 37 36 12 . . 100 Level 1 14 | . 17 63 9 . . . Level 2 28 | . 41 . 28 28 . . Level 3 20 | . 3 . 27 71 . . Level 4 9 | . . . 21 . . . Level 5 . | . . . . . . . High Security . | . . . . . . . Max Security . | . . . . . . . Sterilizations 1 | . . . 1 . . . Peak Influence 1549 | 15 706 270 1549 894 . 90 Initial 594 | . 3 270 58 594 . . Average 520 | 2 319 211 742 779 . 47 Influence Increases 3615 | 20 1106 . 1989 410 . 90 Destroy 0b10 Robot/C 2160 | . 560 . 1240 280 . 80 Destroy 0b10 Robot/NC 55 | 20 10 . 25 . . . Destroy Leader 528 | . 134 . 334 50 . 10 Select Force Hacks 530 | . 310 . 220 . . . Disable Machine 45 | . . . 15 30 . . Destroy Structure 12 | . 2 . 5 5 . . Partial Spotted 60 | . 30 . 30 . . . Lose Combat Pursuer 225 | . 60 . 120 45 . . Influence Decreases 3615 | 15 417 544 614 1091 844 90 Entered New Map 2293 | . 2 424 92 931 844 . Time Decay 1322 | 15 415 120 522 160 . 90 Squads Dispatched 28 | . 10 . 18 . . . Investigation 23 | . 10 . 13 . . . Extermination . | . . . . . . . Reinforcement 3 | . . . 3 . . . Assault 2 | . . . 2 . . . Garrison . | . . . . . . . Intercept . | . . . . . . . Searches Triggered . | . . . . . . . Construction Impeded . | . . . . . . . Haulers Reinforced . | . . . . . . . Active Scanning Responses . | . . . . . . . Cargo Convoy Interrupts . | . . . . . . . Stealth | -11 -10 -10 -9 -9 -9 -8 --------- Run | Yrd Mat Min Mat Min Exi Min Distress Signals 7 | . 4 . 3 . . . Communications Jammed . | . . . . . . . Distress Signals . | . . . . . . . Times Spotted 148 | . 43 . 83 17 1 4 Peak Tracking Total 9 | . 6 . 8 5 9 3 Tactical Retreats 8 | . 2 . 5 1 . . Traps | -11 -10 -10 -9 -9 -9 -8 ------- Run | Yrd Mat Min Mat Min Exi Min Traps Triggered 5 | . 1 . 4 . . . Indirectly . | . . . . . . . Trap Hack Attempts 10 | . . . 10 . . . Triggered . | . . . . . . . Disarmed 6 | . 6 . . . . . Reprogrammed 1 | . . . 1 . . . Reused . | . . . . . . . Traps Extracted . | . . . . . . . Installed . | . . . . . . . Triggered . | . . . . . . . Machines | -11 -10 -10 -9 -9 -9 -8 ---------- Run | Yrd Mat Min Mat Min Exi Min Machines Disabled 4 | . . . 1 2 1 . Max in Single Turn 1 | . . . 1 1 1 . Machines Repaired . | . . . . . . . Machines Dismantled . | . . . . . . . Machines Sabotaged 7 | . 5 . 2 . . . Overloaded Fab Kills . | . . . . . . . Hacking | -11 -10 -10 -9 -9 -9 -8 --------- Run | Yrd Mat Min Mat Min Exi Min Machines Accessed 21 | . 9 . 11 . 1 . Terminals 13 | . 7 . 6 . . . Fabricators . | . . . . . . . Repair Stations 1 | . . . 1 . . . Recycling Units 4 | . 2 . 2 . . . Scanalyzers 2 | . . . 2 . . . Garrison Access . | . . . . . . . Total Hacks 35 | . 16 . 18 . 1 . Successful 24 | . 10 . 13 . 1 . Failed 11 | . 6 . 5 . . . Catastrophic 1 | . . . 1 . . . Database Lockouts . | . . . . . . . Manual 34 | . 17 . 16 . 1 . Terminals 22 | . 13 . 9 . . . Fabricators . | . . . . . . . Repair Stations 3 | . . . 3 . . . Recycling Units 7 | . 3 . 4 . . . Scanalyzers 2 | . . . 2 . . . Garrison Access . | . . . . . . . Terminal Hacks 3 | . 1 . 1 . 1 . Locate Traps 1 | . . . 1 . . . Disarm Traps 1 | . 1 . . . . . Proto ID Catalog 1 | . . . . . 1 . Fabricator Hacks . | . . . . . . . Repair Station Hacks 1 | . . . 1 . . . Refit 1 | . . . 1 . . . Recycling Unit Hacks . | . . . . . . . Scanalyzer . | . . . . . . . Garrison Access Hacks . | . . . . . . . Unauthorized Hacks 20 | . 9 . 11 . . . Terminals 13 | . 7 . 6 . . . Sabotage 11 | . 6 . 5 . . . Search 2 | . 1 . 1 . . . Fabricators . | . . . . . . . Repair Stations 1 | . . . 1 . . . Patch 1 | . . . 1 . . . Recycling Units 4 | . 2 . 2 . . . Tunnel 4 | . 2 . 2 . . . Scanalyzers 2 | . . . 2 . . . Extract 2 | . . . 2 . . . Garrison Access . | . . . . . . . Data Cores Recovered . | . . . . . . . Used . | . . . . . . . Hacking Detections 6 | . 3 . 3 . . . Full Trace Events . | . . . . . . . Feedback Events . | . . . . . . . Feedback Blocked . | . . . . . . . Robot Schematics Acquired . | . . . . . . . Robots Built . | . . . . . . . Authchips . | . . . . . . . Time . | . . . . . . . Total Robot Build Rating . | . . . . . . . Part Schematics Acquired 8 | . . . 8 . . . Parts Built . | . . . . . . . Authchips . | . . . . . . . Time . | . . . . . . . Total Part Build Rating . | . . . . . . . Part Studies Acquired . | . . . . . . . Parts Repaired . | . . . . . . . Time . | . . . . . . . Parts Recycled . | . . . . . . . Recycled Matter . | . . . . . . . Retrieved Matter . | . . . . . . . Retrieved Components . | . . . . . . . Parts Scanalyzed . | . . . . . . . Part Schematics Acquired . | . . . . . . . Parts Damaged . | . . . . . . . Bothacking | -11 -10 -10 -9 -9 -9 -8 ------------ Run | Yrd Mat Min Mat Min Exi Min Used RIF Installer . | . . . . . . . Robots Hacked . | . . . . . . . Non-combat . | . . . . . . . Combat . | . . . . . . . Robot Hacks Applied . | . . . . . . . Relay Couplers Released . | . . . . . . . Fabnet Peak Effective % . | . . . . . . . Robots Rewired . | . . . . . . . Allies Hacked . | . . . . . . . Hacks Repelled . | . . . . . . . Allies | -11 -10 -10 -9 -9 -9 -8 -------- Run | Yrd Mat Min Mat Min Exi Min Total Allies 4 | . . 1 . 3 . . Largest Group 3 | . . 1 . 3 3 . Highest-Rated Group 40 | . . 31 . 40 40 . Highest-Rated Ally 31 | . . 31 . 16 16 . Total Orders . | . . . . . . . Ally Attacks 3 | . . . . . 3 . Total Damage 43 | . . . . . 43 . Kills . | . . . . . . . Allies Corrupted . | . . . . . . . Allies Melted . | . . . . . . . Intel | -11 -10 -10 -9 -9 -9 -8 ------- Run | Yrd Mat Min Mat Min Exi Min Active Infowar (turns) 3528 | 7 1038 252 1453 337 255 186 Structural 2272 | . . 41 1453 337 255 186 Seismic 3528 | 7 1038 252 1453 337 255 186 Robot Analysis Total . | . . . . . . . Derelict Logs Recovered 4 | . . 1 . 3 . . Drone Launches . | . . . . . . . Drone Recoveries . | . . . . . . . Exploration | -11 -10 -10 -9 -9 -9 -8 ------------- Run | Yrd Mat Min Mat Min Exi Min Turns Passed 3590 | 69 1038 252 1453 337 255 186 Spaces Moved 4727 | 77 1002 610 1823 676 352 187 Core 207 | 76 131 . . . . . Treads . | . . . . . . . Legs 1 | 1 . . . . . . Wheels . | . . . . . . . Hover . | . . . . . . . Flight 4519 | . 871 610 1823 676 352 187 Fastest Speed 28 | 50 37 34 28 28 28 28 Average Speed 32 | 50 38 34 30 28 28 28 Slowest Speed 120 | 120 50 37 34 28 28 28 Overloaded Moves . | . . . . . . . Propulsion Burnouts . | . . . . . . . Robots Hopped 75 | . 14 12 39 10 . . Potential Cave-ins . | . . . . . . . Cave-ins Triggered . | . . . . . . . Exploration Rate (%) 65 | 3 94 99 85 98 63 17 Regions Visited 6 Branch Regions 4 Pre-discovered Areas 5 | . 2 . 2 1 . . Known Exits Taken . | . . . . . . . Unknown Exits Taken 6 | 1 1 1 1 1 1 . Scrap Searched 3 | . . 1 . 2 . . Spaces Dug . | . . . . . . . Terrain Destroyed 6 | . . . . 6 . . Melee . | . . . . . . . Projectile . | . . . . . . . AOE 6 | . . . . 6 . . Terrain Rammed . | . . . . . . . Walls Destroyed . | . . . . . . . Machines Disabled . | . . . . . . . Actions | -11 -10 -10 -9 -9 -9 -8 --------- Run | Yrd Mat Min Mat Min Exi Min Total 6146 | 90 1497 640 2368 775 505 271 Wait 982 | 1 420 37 289 65 149 21 Move 4574 | 76 973 585 1747 655 351 187 Hop 72 | . 14 12 36 10 . . Pick Up 15 | . 1 . 10 2 2 . Fast Attach 14 | 6 3 2 2 . . 1 Attach 3 | . . 1 1 . . 1 Detach 1 | . . 1 . . . . Swap 18 | . 2 1 11 3 . 1 Drop 22 | . . 1 15 3 1 2 Fire 292 | 6 67 . 150 20 2 47 Melee 1 | . . . 1 . . . Ram 1 | 1 . . . . . . Kick . | . . . . . . . Crush . | . . . . . . . Escape Stasis . | . . . . . . . Rewire . | . . . . . . . Trap 10 | . . . 10 . . . Miscellaneous 141 | . 17 . 96 17 . 11 Route ------- -11/Scrapyard -10/Materials (discovered 4 exits: *Mat x3 / [*Min]) -10/Mines (discovered 3 exits: *Mat x2 / [*Sub]) -9/Materials (discovered 3 exits: [*Mat x2] / [*Min]) -9/Mines (discovered 3 exits: [*Mat x2] / *Exi) -9/Exiles (discovered 2 exits: [*Min x2]) -8/Mines History --------- Turn | Location | Event 1 | -11/Scrapyard | Upgraded with Utility slot (x2) 1 | -11/Scrapyard | Upgraded with Weapon slot (x2) 3 | -11/Scrapyard | Discovered new exit (range 16) 70 | -11/Scrapyard | Entered Materials 272 | -10/Materials | Reached level 2 279 | -10/Materials | Upgraded with Propulsion slot (x1) 295 | -10/Materials | Discovered new exit (range 9) 302 | -10/Materials | Build established: Gunner 647 | -10/Materials | Reached level 3 660 | -10/Materials | Discovered new exit (range 13) 745 | -10/Materials | Discovered new exit (range 4) 808 | -10/Materials | Discovered new exit (range 8) 1000 | -10/Materials | Reached level 4 1108 | -10/Materials | Entered Mines 1114 | -10/Mines | Discovered new exit (range 12) 1115 | -10/Mines | Found DCF Scrap (12 items) 1119 | -10/Mines | Upgraded with Propulsion slot (x1) 1140 | -10/Mines | Found a Scrap Suit stashed away for nefarious purposes 1163 | -10/Mines | Discovered new exit (range 9) 1203 | -10/Mines | Received a Mining Laser from a helpful Derelict 1207 | -10/Mines | Received a Rocket Launcher from a helpful Derelict 1232 | -10/Mines | Discovered new exit (range 9) 1271 | -10/Mines | Learned Materials stockpile data 1315 | -10/Mines | Upgraded with Utility slot (x1) 1360 | -10/Mines | Entered Materials 1362 | -9/Materials | Reached level 5 1424 | -9/Materials | Reached level 6 1645 | -9/Materials | Reached level 7 1669 | -9/Materials | Destroyed 8 combat bots 1702 | -9/Materials | Discovered new exit (range 10) 1880 | -9/Materials | Reached level 8 1910 | -9/Materials | Discovered new exit (range 15) 2039 | -9/Materials | Discovered new exit (range 15) 2064 | -9/Materials | Upgraded with Propulsion slot (x1) 2064 | -9/Materials | Upgraded with Utility slot (x2) 2160 | -9/Materials | First assault squad dispatched 2339 | -9/Materials | Reached level 9 2376 | -9/Materials | Build established: Sprinter 2452 | -9/Materials | Destroyed 7 combat bots 2536 | -9/Materials | Sterilization system engaged 2536 | -9/Materials | Non-combat units ordered to evacuate 2636 | -9/Materials | Combat units ordered to evacuate 2641 | -9/Materials | Reached level 10 2707 | -9/Materials | Destroyed 14 combat bots 2813 | -9/Materials | Entered Mines 2823 | -9/Mines | Discovered new exit (range 12) 2897 | -9/Mines | Deemed a non-threat by the Exiles lab entrance 2897 | -9/Mines | Discovered new exit (range 6) 2903 | -9/Mines | Learned location of 2 exits from Materials 2910 | -9/Mines | Learned location of Zion (-6) 2911 | -9/Mines | Discovered new exit (range 5) 3078 | -9/Mines | Assisted by bots powering up and referring to "LRC-V3" 3150 | -9/Mines | Entered Exiles 3150 | -9/Exiles | Accompanied by 3 allies 3155 | -9/Exiles | Discovered new exit (range 15) 3158 | -9/Exiles | Met 8R-AWN 3162 | -9/Exiles | Met EX-HEX 3173 | -9/Exiles | Met EX-DEC 3182 | -9/Exiles | Discovered new exit (range 15) 3305 | -9/Exiles | Met EX-BIN 3308 | -9/Exiles | Aligned with FarCom system 3308 | -9/Exiles | Given EX-Vault access code 3315 | -9/Exiles | Opened EX-Vault 3317 | -9/Exiles | Found Gui. Plasma Cannon 3319 | -9/Exiles | Found Cloak of Protection 3325 | -9/Exiles | Warned to stay clear of 0b10 Research branches 3362 | -9/Exiles | Attacked by the Exiles 3405 | -9/Exiles | Stole two prototypes: Cloak of Protection, Gui. Plasma Cannon 3405 | -9/Exiles | Entered Mines 3407 | -8/Mines | Reached level 11 3414 | -8/Mines | NK-0LA came to Exiles' defense 3415 | -8/Mines | Upgraded with Utility slot (x1) 3574 | -8/Mines | Destroyed NK-0LA 3580 | -8/Mines | Found Prototype Device 3580 | -8/Mines | Identified Adv. EM Shield 3591 | -8/Mines | Self-destructed Last Messages --------------- 03411_ Acquired 23 matter. 03412_ Acquired 34 matter. 03412_ Used Protomatter to restore core integrity (+19) 03413_ Used Protomatter to restore part integrity (+5, depleted) 03414_ NK-0LA: "I came as fast as I could... Wait, it was you!" 03415_ Upgraded: Utility Slot (+1) 03415_ Upgraded: Energy Generation (+5) 03415_ Upgraded: Mass Support (+5) 03415_ Dropped Autogun. 03429_ System corrupted: Energy discharge (-50). 03470_ System corrupted: Energy discharge (-91). 03488_ System corrupted: Component data lost. 03569_ R-06 Scavenger collects Corrupted Lgt. Assault Rifle. 03573_ R-06 Scavenger collects Flight Unit. 03577_ R-06 Scavenger collects Autogun. 03578_ Acquired Prototype Device. 03578_ Identified Exp. Heat Sink. 03580_ Acquired Prototype Device. 03580_ Identified Adv. EM Shield. 03590_ Used Protomatter to restore core integrity (+213) Map ----- +----------------------------------------------------+ | | | | | | | | | | | | | | | | | | | | | | | | | | | | | | | ???########?#######???######??????? | | ??###########################?????? | | ??### #### ######=[####????? | | ??## % =####???? | | ??## * ####??? | | ??### ####[= ###??? | | ???### #####[ ##??? | | ????## ####### ##??? | | ???### #######r ## ##??? | | ??#### ###?## #####??? | | ??### ##?##@!#####??? | | ?### ##?##! ##?????? | | ?## ###?## ##?????? | | ?# ####?## ##?????? | | ?? """" ###??## ##?????? | | ???? """" ####### ###????? | | ???? """" ####### ####???? | | ????## ## ###???? | | ????### ## ##???? | | ????#### #### ##???? | | ?????############# ###???? | | ??????########?### ####???? | | ???????????????### ####????? | | ???????????????## ######?????? | | ??????????????### ######??????? | | ??????????????## ####?????????? | | ???????????? ###??????????? | | ????????????##### ###???????????? | | ????????????###### ###???????????? | | ???????????????### ##????????????? | | ????????????????## ##????????????? | | ???????????????? ##????????????? | | ????????????????? #?????????????? | | ?????????????????####?????????????? | | ?????????????????####?????????????? | +----------------------------------------------------+ Best States ------------- Heat Dissipation 93 Energy Generation 29 Energy Capacity 240 Matter Stores 300 Matter Capacity 300 Sight Range 16 Terrain Scan Density 10 Resistance: EM 50 Propulsion Shielding 33 Evasion (%) 64 Targeting Accuracy 5 Particle Charging 22 Item Schematics ----------------- Welding Torch | -9/Materials | Extracted Beam Cannon | -9/Materials | Extracted Med. Armor Plating | -9/Materials | Extracted Mining Laser | -9/Materials | Extracted Hammer | -9/Materials | Extracted Imp. Medium Laser | -9/Materials | Extracted Shotgun | -9/Materials | Extracted Imp. Light Cannon | -9/Materials | Extracted Robot Schematics ------------------ None Fabricated ------------ Nothing Repaired ---------- Nothing Studied --------- None Alien Tech Used ----------------- None Achievements -------------- None Challenges ------------ None RPGLIKE | -11 -10 -10 -9 -9 -9 -8 --------- Run | Yrd Mat Min Mat Min Exi Min Levels Raised 10 | . 3 . 6 . . 1 XP Earned 18474 | 3000 5047 500 8171 767 117 872 XP Spent 17820 | 2910 2190 1900 6370 550 . 3900 Upgrades 29 | 8 7 2 8 1 . 3 Propulsion Slot 3 | . 1 1 1 . . . Utility Slot 6 | 2 . 1 2 . . 1 Weapon Slot 2 | 2 . . . . . . Heat Dissipation 7 | 3 2 . 2 . . . Energy Generation 3 | . 1 . . 1 . 1 Mass Support 3 | 1 . . 1 . . 1 Inventory Capacity 3 | . 2 . 1 . . . Ranged Accuracy 2 | . 1 . 1 . . . Protomatter Created 1478 | . 216 . 1054 96 . 112 Integrity Restored 2782 | . 384 . 1881 280 . 237 Core 2176 | . 384 . 1411 149 . 232 Parts 606 | . . . 470 131 . 5 Protomatter Decayed 228 | . . . 228 . . . Game ------ Seed HelicalCorruptionMembrane Manual? 1 Play Time 00:36:31 Cumulative 662.4 hours Start 2026.07.14 @ 15:20:51 End 2026.07.14 @ 17:17:40 Sessions 1 Manual Loads 0 Difficulty Rogue Special Mode Winter2019/RPGLIKE Game No. 288 Rogue 134 Adventurer 154 Explorer 0 Win Type - Total 22 Types 4/5/4/3/2/1/0/1/1/1 Lore% 95 Gallery% 88 Achievement% 68 Wizard Run 0 Options --------- Layout 0 ASCII 0 Keyboard 0 Movement Numpad Keybinds 0 Fullscreen 2 Font 18/SmallcapsGlow Map View 76x50 Zoom Use 0% Tactical HUD 1 Map Filters NONE Filters NONE Steam 1 RUN: 0c6b8daf-224c-4299-a05b-99e647e38fb6